fUSD/lending_fUSD_20260505
["ID","MTS","AMOUNT","RATE_DAILY","PERIOD"]
[421600759,1777938749000,-1948.18,0.00042082,120]
[421600697,1777938749000,-500.0,0.00042082,120]
[421600700,1777938749000,-639.5,0.00042082,120]
[421600698,1777938749000,-550.71,0.00042082,120]
[421600699,1777938749000,-500.0,0.00042082,120]
[421600701,1777938749000,-554.39,0.00042082,120]
[421600705,1777938749000,-2743.4,0.00042082,120]
[421600704,1777938749000,-542.72,0.00042082,120]
[421600707,1777938749000,-525.08,0.00042082,120]
[421600703,1777938749000,-760.4,0.00042082,120]
[421600708,1777938749000,-551.61,0.00042082,120]
[421600706,1777938749000,-2616.79,0.00042082,120]
[421600711,1777938749000,-500.0,0.00042082,120]
[421600712,1777938749000,-2061.71,0.00042082,120]
[421600710,1777938749000,-222.75,0.00042082,120]
[421600713,1777938749000,-1783.47,0.00042082,120]
[421600714,1777938749000,-500.0,0.00042082,120]
[421600715,1777938749000,-500.0,0.00042082,120]
[421600716,1777938749000,-527.86,0.00042082,120]
[421600717,1777938749000,-525.03,0.00042082,120]
[421600723,1777938749000,-593.7,0.00042082,120]
[421600720,1777938749000,-500.0,0.00042082,5]
[421600718,1777938749000,-550.98,0.00042082,120]
[421600719,1777938749000,-1185.59,0.00042082,120]
[421600721,1777938749000,-1111.02,0.00042082,120]
[421600722,1777938749000,-682.65,0.00042082,120]
[421600725,1777938749000,-500.0,0.00042082,120]
[421600737,1777938749000,-500.0,0.00042082,120]
[421600760,1777938749000,-4950.15,0.00042082,120]
[421600702,1777938749000,-1148.79,0.00042082,120]
[421600752,1777938749000,-983.68,0.00042082,120]
[421600798,1777938749000,-548.9,0.00042136,120]
[421600794,1777938749000,-500.0,0.00042136,120]
[421600799,1777938749000,-598.67,0.00042136,120]
[421600791,1777938749000,-505.2,0.00042136,120]
[421600796,1777938749000,-737.03,0.00042136,120]
[421600795,1777938749000,-170.86,0.00042136,120]
[421600792,1777938749000,-500.0,0.00042136,120]
[421600793,1777938749000,-500.0,0.00042136,120]
[421600797,1777938749000,-500.0,0.00042136,120]
[421600803,1777938749000,-500.0,0.00042136,120]
[421600812,1777938749000,-500.0,0.00042136,120]
[421600804,1777938749000,-500.0,0.00042136,120]
[421600801,1777938749000,-510.84,0.00042136,120]
[421600802,1777938749000,-500.0,0.00042136,120]
[421600809,1777938749000,-561.7,0.00042136,120]
[421600805,1777938749000,-594.67,0.00042136,120]
[421600808,1777938749000,-519.49,0.00042136,120]
[421600806,1777938749000,-639.96,0.00042136,120]
[421600807,1777938749000,-500.0,0.00042136,120]
[421600811,1777938749000,-500.0,0.00042136,120]
[421600810,1777938749000,-500.0,0.00042136,120]
[421600813,1777938749000,-525.42,0.00042136,120]
[421600815,1777938749000,-500.0,0.00042136,120]
[421600816,1777938749000,-596.77235952,0.00042136,120]
[421600814,1777938749000,-563.3,0.00042136,120]
[421600817,1777938749000,-563.4,0.00042136,120]
[421600763,1777938749000,-500.0,0.00042082,120]
[421600800,1777938749000,-500.0,0.00042136,120]
[421600789,1777938749000,-515.02424478,0.00042136,3]
[421600818,1777938749000,-1714.86,0.00042136,120]
[421600787,1777938749000,-10000.0,0.00042107,30]
[421600790,1777938749000,-500.0,0.00042136,120]
[421600757,1777938749000,-515.78,0.00042082,120]
[421600758,1777938749000,-500.0,0.00042082,120]
[421600762,1777938749000,-500.0,0.00042082,120]
[421600761,1777938749000,-384.41898119,0.00042082,120]
[421600764,1777938749000,-497.72,0.00042082,120]
[421600766,1777938749000,-500.0,0.00042082,120]
[421600767,1777938749000,-500.0,0.00042082,120]
[421600765,1777938749000,-531.97,0.00042082,120]
[421600768,1777938749000,-7661.52,0.00042082,120]
[421600773,1777938749000,-974.58,0.00042082,120]
[421600776,1777938749000,-539.09,0.00042082,120]
[421600771,1777938749000,-695.23,0.00042082,120]
[421600772,1777938749000,-500.0,0.00042082,120]
[421600774,1777938749000,-500.0,0.00042082,120]
[421600784,1777938749000,-511.55,0.00042082,120]
[421600785,1777938749000,-4499.0,0.000421,60]
[421600769,1777938749000,-546.64,0.00042082,120]
[421600782,1777938749000,-512.4,0.00042082,120]
[421600783,1777938749000,-500.0,0.00042082,120]
[421600786,1777938749000,-5000.0,0.00042107,30]
[421600779,1777938749000,-500.0,0.00042082,120]
[421600780,1777938749000,-602.25,0.00042082,120]
[421600777,1777938749000,-2126.61,0.00042082,120]
[421600788,1777938749000,-409.1,0.00042115,120]
[421600778,1777938749000,-3600.11,0.00042082,120]
[421600770,1777938749000,-542.61,0.00042082,120]
[421600775,1777938749000,-1683.66,0.00042082,120]
[421600781,1777938749000,-500.0,0.00042082,120]
[421600859,1777938750000,-500.0,0.00042136,120]
[421600861,1777938750000,-738.47,0.00042136,120]
[421600862,1777938750000,-500.83,0.00042136,120]
[421600873,1777938750000,-500.0,0.00042136,120]
[421600855,1777938750000,-203.97858394,0.00042136,120]
[421600856,1777938750000,-200.0,0.00042136,120]
[421600852,1777938750000,-624.02,0.00042136,120]
[421600857,1777938750000,-500.0,0.00042136,120]
[421600851,1777938750000,-500.0,0.00042136,120]
[421600853,1777938750000,-500.0,0.00042136,120]
[421600854,1777938750000,-500.0,0.00042136,120]
[421600872,1777938750000,-782.2,0.00042136,120]
[421600858,1777938750000,-569.37,0.00042136,120]
[421600864,1777938750000,-500.0,0.00042136,120]
[421600879,1777938750000,-550.71,0.00042136,120]
[421600874,1777938750000,-500.0,0.00042136,120]
[421600875,1777938750000,-500.0,0.00042136,120]
[421600869,1777938750000,-299.63,0.00042136,120]
[421600867,1777938750000,-500.0,0.00042136,120]
[421600871,1777938750000,-617.91,0.00042136,120]
[421600866,1777938750000,-514.29,0.00042136,120]
[421600865,1777938750000,-500.0,0.00042136,120]
[421600870,1777938750000,-539.94,0.00042136,120]
[421600868,1777938750000,-600.64,0.00042136,120]
[421600877,1777938750000,-500.0,0.00042136,120]
[421600887,1777938750000,-2616.79,0.00042136,120]
[421600876,1777938750000,-500.0,0.00042136,120]
[421600888,1777938750000,-525.08,0.00042136,120]
[421600849,1777938750000,-500.0,0.00042136,120]
[421600863,1777938750000,-513.16,0.00042136,120]
[421600860,1777938750000,-500.0,0.00042136,120]
[421600819,1777938750000,-500.0,0.00042136,120]
[421600845,1777938750000,-591.88,0.00042136,120]
[421600822,1777938750000,-500.0,0.00042136,120]
[421600880,1777938750000,-500.0,0.00042136,120]
[421600821,1777938750000,-171.35,0.00042136,120]
[421600820,1777938750000,-500.0,0.00042136,120]
[421600823,1777938750000,-543.2949044,0.00042136,120]
[421600824,1777938750000,-500.0,0.00042136,120]
[421600827,1777938750000,-558.58,0.00042136,120]
[421600826,1777938750000,-1025.94,0.00042136,120]
[421600828,1777938750000,-195.02773031,0.00042136,120]
[421600835,1777938750000,-419.10322182,0.00042136,120]
[421600832,1777938750000,-500.0,0.00042136,120]
[421600834,1777938750000,-500.0,0.00042136,120]
[421600831,1777938750000,-538.86,0.00042136,120]
[421600833,1777938750000,-500.0,0.00042136,120]
[421600825,1777938750000,-500.0,0.00042136,120]
[421600830,1777938750000,-501.59,0.00042136,2]
[421600829,1777938750000,-500.0,0.00042136,120]
[421600837,1777938750000,-681.79,0.00042136,120]
[421600838,1777938750000,-665.59,0.00042136,120]
[421600847,1777938750000,-500.0,0.00042136,120]
[421600836,1777938750000,-500.0,0.00042136,120]
[421600839,1777938750000,-502.33,0.00042136,120]
[421600844,1777938750000,-500.0,0.00042136,120]
[421600840,1777938750000,-574.3,0.00042136,120]
[421600848,1777938750000,-1415.03,0.00042136,120]
[421600842,1777938750000,-699.56,0.00042136,120]
[421600841,1777938750000,-506.44,0.00042136,120]
[421600843,1777938750000,-1005.04,0.00042136,120]
[421600846,1777938750000,-562.94,0.00042136,120]
[421600850,1777938750000,-562.44,0.00042136,120]
[421600885,1777938750000,-542.72,0.00042136,120]
[421600883,1777938750000,-1148.79,0.00042136,120]
[421600944,1777938750000,-974.58,0.00042136,120]
[421600919,1777938750000,-500.0,0.00042136,120]
[421600930,1777938750000,-1414.82,0.00042136,120]
[421600926,1777938750000,-500.0,0.00042136,120]
[421600928,1777938750000,-16320.05,0.00042136,120]
[421600924,1777938750000,-500.0,0.00042136,120]
[421600927,1777938750000,-983.68,0.00042136,120]
[421600921,1777938750000,-507.75,0.00042136,120]
[421600917,1777938750000,-556.71,0.00042136,120]
[421600922,1777938750000,-1227.72,0.00042136,120]
[421600925,1777938750000,-2670.18,0.00042136,120]
[421600929,1777938750000,-1581.96,0.00042136,120]
[421600942,1777938750000,-695.23,0.00042136,120]
[421600943,1777938750000,-500.0,0.00042136,120]
[421600931,1777938750000,-758.08,0.00042136,120]
[421600933,1777938750000,-500.0,0.00042136,120]
[421600932,1777938750000,-515.78,0.00042136,120]
[421600934,1777938750000,-1948.18,0.00042136,120]
[421600938,1777938750000,-531.97,0.00042136,120]
[421600939,1777938750000,-500.0,0.00042136,120]
[421600941,1777938750000,-7661.52,0.00042136,120]
[421600936,1777938750000,-500.0,0.00042136,120]
[421600940,1777938750000,-617.25,0.00042136,120]
[421600937,1777938750000,-500.0,0.00042136,120]
[421600935,1777938750000,-4950.15,0.00042136,120]
[421600945,1777938750000,-437.15472362,0.00042136,120]
[421600884,1777938750000,-760.4,0.00042136,120]
[421600946,1777938750000,-1683.66,0.00042136,120]
[421600947,1777938750000,-539.09,0.00042136,120]
[421600948,1777938750000,-2126.61,0.00042136,120]
[421600916,1777938750000,-696.58,0.00042136,120]
[421600920,1777938750000,-20831.24,0.00042136,120]
[421600923,1777938750000,-546.18,0.00042136,120]
[421600907,1777938750000,-689.15,0.00042136,120]
[421600878,1777938750000,-500.0,0.00042136,120]
[421600886,1777938750000,-2743.4,0.00042136,120]
[421600918,1777938750000,-500.0,0.00042136,120]
[421600881,1777938750000,-639.5,0.00042136,120]
[421600892,1777938750000,-2061.71,0.00042136,120]
[421600896,1777938750000,-527.86,0.00042136,120]
[421600894,1777938750000,-500.0,0.00042136,120]
[421600899,1777938750000,-1185.59,0.00042136,120]
[421600900,1777938750000,-500.0,0.00042136,5]
[421600890,1777938750000,-500.0,0.00042136,120]
[421600897,1777938750000,-525.03,0.00042136,120]
[421600889,1777938750000,-551.61,0.00042136,120]
[421600895,1777938750000,-500.0,0.00042136,120]
[421600893,1777938750000,-1783.47,0.00042136,120]
[421600891,1777938750000,-500.0,0.00042136,120]
[421600882,1777938750000,-554.39,0.00042136,120]
[421600898,1777938750000,-550.98,0.00042136,120]
[421600911,1777938750000,-526.93,0.00042136,120]
[421600901,1777938750000,-1111.02,0.00042136,120]
[421600915,1777938750000,-500.0,0.00042136,120]
[421600910,1777938750000,-500.0,0.00042136,120]
[421600908,1777938750000,-500.0,0.00042136,120]
[421600909,1777938750000,-500.0,0.00042136,120]
[421600914,1777938750000,-19191.44,0.00042136,120]
[421600912,1777938750000,-500.0,0.00042136,120]
[421600904,1777938750000,-323.64,0.00042136,120]
[421600903,1777938750000,-593.7,0.00042136,120]
[421600905,1777938750000,-369.89,0.00042136,120]
[421600902,1777938750000,-682.65,0.00042136,120]
[421600913,1777938750000,-500.0,0.00042136,120]
[421600906,1777938750000,-500.0,0.00042136,120]
[421600989,1777938751000,-538.86,0.00042191,120]
[421600998,1777938751000,-500.0,0.00042191,120]
[421600987,1777938751000,-500.0,0.00042191,120]
[421600979,1777938751000,-563.3,0.00042191,120]
[421600992,1777938751000,-681.79,0.00042191,120]
[421600985,1777938751000,-1025.94,0.00042191,120]
[421600982,1777938751000,-1714.86,0.00042191,120]
[421600984,1777938751000,-500.0,0.00042191,120]
[421600986,1777938751000,-558.58,0.00042191,120]
[421600981,1777938751000,-563.4,0.00042191,120]
[421600988,1777938751000,-501.59,0.00042191,2]
[421600983,1777938751000,-500.0,0.00042191,120]
[421600991,1777938751000,-500.0,0.00042191,120]
[421600994,1777938751000,-574.3,0.00042191,120]
[421600999,1777938751000,-562.94,0.00042191,120]
[421600995,1777938751000,-506.44,0.00042191,120]
[421600996,1777938751000,-699.56,0.00042191,120]
[421600993,1777938751000,-665.59,0.00042191,120]
[421600997,1777938751000,-1005.04,0.00042191,120]
[421601000,1777938751000,-500.0,0.00042191,120]
[421601001,1777938751000,-1415.03,0.00042191,120]
[421601006,1777938751000,-184.82,0.00042191,120]
[421601002,1777938751000,-500.0,0.00042191,120]
[421601011,1777938751000,-500.83,0.00042191,120]
[421601010,1777938751000,-738.47,0.00042191,120]
[421600975,1777938751000,-500.0,0.00042191,120]
[421600990,1777938751000,-479.23,0.00042191,120]
[421600978,1777938751000,-525.42,0.00042191,120]
[421601012,1777938751000,-513.16,0.00042191,120]
[421600977,1777938751000,-500.0,0.00042191,120]
[421600955,1777938751000,-511.55,0.00042136,120]
[421600952,1777938751000,-500.0,0.00042136,120]
[421600951,1777938751000,-602.25,0.00042136,120]
[421600953,1777938751000,-512.4,0.00042136,120]
[421600949,1777938751000,-3600.11,0.00042136,120]
[421600950,1777938751000,-500.0,0.00042136,120]
[421600954,1777938751000,-304.26125873,0.00042136,120]
[421600965,1777938751000,-737.03,0.00042191,120]
[421600956,1777938751000,-5000.0,0.00042141,15]
[421600958,1777938751000,-101147.18241231,0.00042144,60]
[421600961,1777938751000,-500.0,0.00042191,120]
[421600962,1777938751000,-505.2,0.00042191,120]
[421600980,1777938751000,-469.17,0.00042191,120]
[421600963,1777938751000,-500.0,0.00042191,120]
[421600957,1777938751000,-10000.0,0.00042141,15]
[421600964,1777938751000,-500.0,0.00042191,120]
[421600960,1777938751000,-8197.1,0.00042169,2]
[421600967,1777938751000,-548.9,0.00042191,120]
[421600968,1777938751000,-598.67,0.00042191,120]
[421600969,1777938751000,-500.0,0.00042191,120]
[421600973,1777938751000,-519.49,0.00042191,120]
[421600974,1777938751000,-561.7,0.00042191,120]
[421600970,1777938751000,-360.67,0.00042191,120]
[421600972,1777938751000,-500.0,0.00042191,120]
[421600971,1777938751000,-500.0,0.00042191,120]
[421600976,1777938751000,-500.0,0.00042191,120]
[421600959,1777938751000,-5345.94,0.00042169,2]
[421601009,1777938751000,-500.0,0.00042191,120]
[421600966,1777938751000,-500.0,0.00042191,120]
[421601008,1777938751000,-569.37,0.00042191,120]
[421601040,1777938751000,-2061.71,0.00042191,120]
[421601045,1777938751000,-525.03,0.00042191,120]
[421601043,1777938751000,-249.71722507,0.00042191,120]
[421601049,1777938751000,-1111.02,0.00042191,120]
[421601047,1777938751000,-1185.59,0.00042191,120]
[421601041,1777938751000,-1783.47,0.00042191,120]
[421601042,1777938751000,-500.0,0.00042191,120]
[421601044,1777938751000,-527.86,0.00042191,120]
[421601046,1777938751000,-550.98,0.00042191,120]
[421601048,1777938751000,-500.0,0.00042191,5]
[421601051,1777938751000,-593.7,0.00042191,120]
[421601054,1777938751000,-500.0,0.00042191,120]
[421601039,1777938751000,-625.75,0.00042191,120]
[421601052,1777938751000,-164.6,0.00042191,120]
[421601063,1777938751000,-556.71,0.00042191,120]
[421601057,1777938751000,-526.93,0.00042191,120]
[421601056,1777938751000,-500.0,0.00042191,120]
[421601060,1777938751000,-19191.44,0.00042191,120]
[421601058,1777938751000,-500.0,0.00042191,120]
[421601061,1777938751000,-500.0,0.00042191,120]
[421601059,1777938751000,-500.0,0.00042191,120]
[421601062,1777938751000,-696.58,0.00042191,120]
[421601065,1777938751000,-500.0,0.00042191,120]
[421601064,1777938751000,-500.0,0.00042191,120]
[421601066,1777938751000,-20831.24,0.00042191,120]
[421601007,1777938751000,-500.0,0.00042191,120]
[421601055,1777938751000,-193.07,0.00042191,120]
[421601050,1777938751000,-682.65,0.00042191,120]
[421601053,1777938751000,-689.15,0.00042191,120]
[421601034,1777938751000,-2743.4,0.00042191,120]
[421601005,1777938751000,-500.0,0.00042191,120]
[421601038,1777938751000,-500.0,0.00042191,120]
[421601004,1777938751000,-417.86,0.00042191,120]
[421601003,1777938751000,-562.44,0.00042191,120]
[421601014,1777938751000,-500.0,0.00042191,120]
[421601025,1777938751000,-476.44,0.00042191,120]
[421601016,1777938751000,-500.0,0.00042191,120]
[421601024,1777938751000,-451.53,0.00042191,120]
[421601017,1777938751000,-600.64,0.00042191,120]
[421601015,1777938751000,-514.29,0.00042191,120]
[421601018,1777938751000,-539.94,0.00042191,120]
[421601021,1777938751000,-500.0,0.00042191,120]
[421601019,1777938751000,-617.91,0.00042191,120]
[421601020,1777938751000,-782.2,0.00042191,120]
[421601013,1777938751000,-500.0,0.00042191,120]
[421601022,1777938751000,-500.0,0.00042191,120]
[421601032,1777938751000,-760.4,0.00042191,120]
[421601033,1777938751000,-542.72,0.00042191,120]
[421601031,1777938751000,-1148.79,0.00042191,120]
[421601036,1777938751000,-525.08,0.00042191,120]
[421601035,1777938751000,-2616.79,0.00042191,120]
[421601028,1777938751000,-500.0,0.00042191,120]
[421601030,1777938751000,-554.39,0.00042191,120]
[421601026,1777938751000,-500.0,0.00042191,120]
[421601037,1777938751000,-551.61,0.00042191,120]
[421601027,1777938751000,-550.71,0.00042191,120]
[421601023,1777938751000,-500.0,0.00042191,120]
[421601029,1777938751000,-639.5,0.00042191,120]
[421601107,1777938752000,-737.03,0.00042246,120]
[421601111,1777938752000,-234.93,0.00042246,120]
[421601109,1777938752000,-548.9,0.00042246,120]
[421601112,1777938752000,-500.0,0.00042246,120]
[421601102,1777938752000,-505.0,0.00042241,18]
[421601108,1777938752000,-500.0,0.00042246,120]
[421601106,1777938752000,-500.0,0.00042246,120]
[421601105,1777938752000,-500.0,0.00042246,120]
[421601104,1777938752000,-505.2,0.00042246,120]
[421601103,1777938752000,-649.0,0.00042246,120]
[421601098,1777938752000,-8144.03291353,0.000422,120]
[421601101,1777938752000,-20000.00000099,0.0004222,120]
[421601110,1777938752000,-598.67,0.00042246,120]
[421601114,1777938752000,-519.49,0.00042246,120]
[421601126,1777938752000,-558.58,0.00042246,120]
[421601124,1777938752000,-635.95,0.00042246,120]
[421601113,1777938752000,-175.25,0.00042246,120]
[421601115,1777938752000,-561.7,0.00042246,120]
[421601118,1777938752000,-500.0,0.00042246,120]
[421601119,1777938752000,-525.42,0.00042246,120]
[421601116,1777938752000,-478.47,0.00042246,120]
[421601121,1777938752000,-563.4,0.00042246,120]
[421601117,1777938752000,-500.0,0.00042246,120]
[421601120,1777938752000,-563.3,0.00042246,120]
[421601123,1777938752000,-500.0,0.00042246,120]
[421601122,1777938752000,-1714.86,0.00042246,120]
[421601128,1777938752000,-501.59,0.00042246,2]
[421601094,1777938752000,-511.55,0.00042191,120]
[421601125,1777938752000,-1025.94,0.00042246,120]
[421601097,1777938752000,-1295.0,0.000422,120]
[421601071,1777938752000,-2670.18,0.00042191,120]
[421601095,1777938752000,-50000.0,0.000422,30]
[421601073,1777938752000,-16320.05,0.00042191,120]
[421601068,1777938752000,-1227.72,0.00042191,120]
[421601130,1777938752000,-500.0,0.00042246,120]
[421601072,1777938752000,-983.68,0.00042191,120]
[421601067,1777938752000,-507.75,0.00042191,120]
[421601070,1777938752000,-587.9,0.00042191,120]
[421601074,1777938752000,-1581.96,0.00042191,120]
[421601069,1777938752000,-546.18,0.00042191,120]
[421601075,1777938752000,-1414.82,0.00042191,120]
[421601087,1777938752000,-1683.66,0.00042191,120]
[421601086,1777938752000,-974.58,0.00042191,120]
[421601077,1777938752000,-515.78,0.00042191,120]
[421601078,1777938752000,-500.0,0.00042191,120]
[421601096,1777938752000,-5712.11652471,0.000422,2]
[421601082,1777938752000,-500.0,0.00042191,120]
[421601083,1777938752000,-7661.52,0.00042191,120]
[421601084,1777938752000,-695.23,0.00042191,120]
[421601081,1777938752000,-531.97,0.00042191,120]
[421601085,1777938752000,-321.18,0.00042191,120]
[421601080,1777938752000,-4950.15,0.00042191,120]
[421601089,1777938752000,-2126.61,0.00042191,120]
[421601099,1777938752000,-212.9588089,0.00042203,120]
[421601100,1777938752000,-409.1,0.00042215,120]
[421601088,1777938752000,-539.09,0.00042191,120]
[421601091,1777938752000,-500.0,0.00042191,120]
[421601090,1777938752000,-3600.11,0.00042191,120]
[421601092,1777938752000,-602.25,0.00042191,120]
[421601093,1777938752000,-512.4,0.00042191,120]
[421601079,1777938752000,-1948.18,0.00042191,120]
[421601129,1777938752000,-538.86,0.00042246,120]
[421601076,1777938752000,-758.08,0.00042191,120]
[421601132,1777938752000,-665.59,0.00042246,120]
[421601166,1777938752000,-1148.79,0.00042246,120]
[421601168,1777938752000,-542.72,0.00042246,120]
[421601176,1777938752000,-500.0,0.00042246,120]
[421601167,1777938752000,-760.4,0.00042246,120]
[421601169,1777938752000,-2743.4,0.00042246,120]
[421601172,1777938752000,-551.61,0.00042246,120]
[421601171,1777938752000,-525.08,0.00042246,120]
[421601165,1777938752000,-554.39,0.00042246,120]
[421601170,1777938752000,-2616.79,0.00042246,120]
[421601174,1777938752000,-2061.71,0.00042246,120]
[421601175,1777938752000,-1783.47,0.00042246,120]
[421601177,1777938752000,-527.86,0.00042246,120]
[421601173,1777938752000,-500.0,0.00042246,120]
[421601159,1777938752000,-348.1,0.00042246,120]
[421601179,1777938752000,-550.98,0.00042246,120]
[421601190,1777938752000,-500.0,0.00042246,120]
[421601182,1777938752000,-1111.02,0.00042246,120]
[421601178,1777938752000,-525.03,0.00042246,120]
[421601183,1777938752000,-682.65,0.00042246,120]
[421601181,1777938752000,-500.0,0.00042246,5]
[421601187,1777938752000,-500.0,0.00042246,120]
[421601186,1777938752000,-500.0,0.00042246,120]
[421601180,1777938752000,-1185.59,0.00042246,120]
[421601184,1777938752000,-593.7,0.00042246,120]
[421601188,1777938752000,-526.93,0.00042246,120]
[421601191,1777938752000,-19191.44,0.00042246,120]
[421601192,1777938752000,-696.58,0.00042246,120]
[421601131,1777938752000,-681.79,0.00042246,120]
[421601189,1777938752000,-280.51,0.00042246,120]
[421601160,1777938752000,-362.84,0.00042246,120]
[421601185,1777938752000,-689.15,0.00042246,120]
[421601157,1777938752000,-782.2,0.00042246,120]
[421601153,1777938752000,-621.95,0.00042246,120]
[421601137,1777938752000,-186.29,0.00042246,120]
[421601135,1777938752000,-699.56,0.00042246,120]
[421601136,1777938752000,-1005.04,0.00042246,120]
[421601133,1777938752000,-574.3,0.00042246,120]
[421601127,1777938752000,-553.8,0.00042246,120]
[421601138,1777938752000,-562.94,0.00042246,120]
[421601140,1777938752000,-1415.03,0.00042246,120]
[421601150,1777938752000,-500.0,0.00042246,120]
[421601139,1777938752000,-638.47,0.00042246,120]
[421601141,1777938752000,-193.86,0.00042246,120]
[421601142,1777938752000,-562.44,0.00042246,120]
[421601143,1777938752000,-500.0,0.00042246,120]
[421601149,1777938752000,-513.16,0.00042246,120]
[421601134,1777938752000,-506.44,0.00042246,120]
[421601146,1777938752000,-500.0,0.00042246,120]
[421601145,1777938752000,-569.37,0.00042246,120]
[421601164,1777938752000,-639.5,0.00042246,120]
[421601156,1777938752000,-617.91,0.00042246,120]
[421601162,1777938752000,-550.71,0.00042246,120]
[421601161,1777938752000,-302.23,0.00042246,120]
[421601154,1777938752000,-600.64,0.00042246,120]
[421601163,1777938752000,-500.0,0.00042246,120]
[421601152,1777938752000,-514.29,0.00042246,120]
[421601144,1777938752000,-500.0,0.00042246,120]
[421601155,1777938752000,-539.94,0.00042246,120]
[421601148,1777938752000,-500.83,0.00042246,120]
[421601158,1777938752000,-500.0,0.00042246,120]
[421601147,1777938752000,-738.47,0.00042246,120]
[421601151,1777938752000,-500.0,0.00042246,120]
[421601222,1777938753000,-511.55,0.00042246,120]
[421601223,1777938753000,-1095.04104614,0.00042275,2]
[421601217,1777938753000,-2126.61,0.00042246,120]
[421601225,1777938753000,-145009.0,0.000423,60]
[421601226,1777938753000,-505.2,0.00042301,120]
[421601227,1777938753000,-500.0,0.00042301,120]
[421601232,1777938753000,-598.67,0.00042301,120]
[421601228,1777938753000,-362.21,0.00042301,120]
[421601231,1777938753000,-548.9,0.00042301,120]
[421601229,1777938753000,-737.03,0.00042301,120]
[421601224,1777938753000,-287.07976238,0.00042293,2]
[421601236,1777938753000,-457.29,0.00042301,120]
[421601238,1777938753000,-525.42,0.00042301,120]
[421601230,1777938753000,-312.08,0.00042301,120]
[421601235,1777938753000,-561.7,0.00042301,120]
[421601234,1777938753000,-519.49,0.00042301,120]
[421601233,1777938753000,-276.09,0.00042301,120]
[421601237,1777938753000,-243.76,0.00042301,120]
[421601240,1777938753000,-563.4,0.00042301,120]
[421601244,1777938753000,-558.58,0.00042301,120]
[421601241,1777938753000,-1714.86,0.00042301,120]
[421601242,1777938753000,-500.0,0.00042301,120]
[421601221,1777938753000,-512.4,0.00042246,120]
[421601239,1777938753000,-563.3,0.00042301,120]
[421601219,1777938753000,-500.0,0.00042246,120]
[421601204,1777938753000,-1414.82,0.00042246,120]
[421601218,1777938753000,-3600.11,0.00042246,120]
[421601243,1777938753000,-1025.94,0.00042301,120]
[421601198,1777938753000,-1227.72,0.00042246,120]
[421601199,1777938753000,-546.18,0.00042246,120]
[421601200,1777938753000,-2670.18,0.00042246,120]
[421601201,1777938753000,-983.68,0.00042246,120]
[421601194,1777938753000,-500.0,0.00042246,120]
[421601202,1777938753000,-16320.05,0.00042246,120]
[421601195,1777938753000,-500.0,0.00042246,120]